bitfinex-derivatives/quotes_SOLF0:USTF0_20250211
["timestamp","ask_amount","ask_price","bid_price","bid_amount"]
[1739290938296,5.03900467,199.77,199.74,5.04060398]
[1739290938692,5.03900467,199.77,199.74,0.03450398]
[1739290938889,0.03350467,199.77,199.74,0.03450398]
[1739290939293,5.0059,199.76,199.74,0.03450398]
[1739290939502,0.03350467,199.77,199.74,0.03450398]
[1739290939700,0.03350467,199.77,199.75,5.0058]
[1739290941499,0.03350467,199.77,199.74,13.56802831]
[1739290941701,0.03350467,199.77,199.76,5.0057]
[1739290942201,0.03350467,199.77,199.74,13.56802831]
[1739290942202,0.03350467,199.77,199.75,5.0059]
[1739290942597,0.03350467,199.77,199.74,13.56802831]
[1739290943603,0.03350467,199.77,199.76,8.65304213]
[1739290943803,0.03350467,199.77,199.76,13.65874213]
[1739290944503,1.4678,199.86,199.76,8.65304213]
[1739290944703,1.4678,199.86,199.82,8.65304213]
[1739290945795,1.50284981,199.86,199.82,8.68981958]
[1739290945996,5.004,199.83,199.82,0.03677745]
[1739290950707,5.0055,199.77,199.76,8.65304213]
[1739290951106,5.0055,199.77,199.65,6.6124]
[1739290951107,5.0055,199.77,199.74,8.65304213]
[1739290952007,5.04336131,199.77,199.74,8.68947599]
[1739290952305,5.04336131,199.77,199.74,13.69557599]
[1739290952507,5.006,199.75,199.74,0.03643386]
[1739290952698,10.12264213,199.76,199.68,13.66054213]
[1739290953502,10.12264213,199.76,199.7,8.65304213]
[1739290953908,1.4696,199.76,199.72,8.65304213]
[1739290954108,5.0063,199.74,199.72,8.65304213]
[1739290954704,0.03350305,199.75,199.71,0.03475285]
[1739290955905,5.03950305,199.75,199.72,5.0067]
[1739290956105,5.03950305,199.75,199.71,0.03475285]
[1739290956302,5.0063,199.74,199.71,0.03475285]
[1739290958006,0.03350305,199.75,199.71,0.03475285]
[1739290958007,0.03350305,199.75,199.71,13.5635706]
[1739290958213,0.03350305,199.75,199.74,13.52881775]
[1739290959021,0.03350305,199.75,199.74,18.53501775]
[1739290960315,0.03350305,199.75,199.74,13.52881775]
[1739290960921,0.03350305,199.75,199.74,18.53501775]
[1739290961423,3.0818,199.83,199.74,13.52881775]
[1739290961718,5.0046,199.81,199.77,13.52881775]
[1739290962521,5.03702993,199.81,199.77,13.56291781]
[1739290962724,5.03692993,199.81,199.78,5.0052]
[1739290963219,0.03242993,199.81,199.78,5.0052]
[1739290966225,5.0051,199.79,199.77,13.56291781]
[1739290966419,0.03242993,199.81,199.77,0.03410006]
[1739290966926,5.0052,199.78,199.77,0.03410006]
[1739290968225,5.0048,199.8,199.77,0.03410006]
[1739290970526,5.005,199.79,199.77,0.03410006]
[1739290971819,5.0052,199.78,199.77,0.03410006]
[1739290972023,1.4702,199.8,199.71,13.52881775]
[1739290972228,1.5179,199.79,199.71,13.52881775]
[1739290972828,5.0064,199.74,199.71,13.52881775]
[1739290973226,5.04389066,199.74,199.71,13.56245058]
[1739290973932,5.0067,199.72,199.71,0.03363283]
[1739290978436,5.0077,199.68,199.65,18.53711775]
[1739290978728,5.0077,199.68,199.65,13.52881775]
[1739290979524,5.04351881,199.68,199.65,13.56569934]
[1739290979829,0.03581881,199.68,199.65,13.56569934]
[1739290980634,0.03581881,199.68,199.66,5.008]
[1739290980933,0.03581881,199.68,199.65,13.56569934]
[1739290981237,0.03581881,199.68,199.67,5.008]
[1739290981631,0.03581881,199.68,199.66,5.0081]
[1739290982337,0.03581881,199.68,199.65,13.56569934]
[1739290982629,0.03581881,199.68,199.67,5.008]
[1739290982837,0.03581881,199.68,199.65,13.56569934]
[1739290983728,0.03581881,199.68,199.67,8.65997378]
[1739290983929,0.03581881,199.68,199.67,13.66797378]
[1739290984325,1.487,199.78,199.67,8.65997378]
[1739290984536,5.0057,199.77,199.72,8.65997378]
[1739290984833,1.487,199.78,199.72,8.65997378]
[1739290985527,0.0323164,199.77,199.73,0.03434152]
[1739290986130,5.0064,199.74,199.73,0.03434152]
[1739290988033,5.0076,199.69,199.68,8.65997378]
[1739290988334,8.65997378,199.75,199.68,13.66767378]
[1739290989039,8.65997378,199.77,199.7,8.65997378]
[1739290989232,0.03269086,199.73,199.7,8.69643494]
[1739290989633,5.007,199.71,199.7,8.69643494]
[1739290991038,8.65997378,199.71,199.64,8.65997378]
[1739290992038,5.0083,199.66,199.64,8.65997378]
[1739290992836,0.03594675,199.69,199.66,5.0082]
[1739290993038,0.03594675,199.69,199.67,8.65997378]
[1739290993539,5.04364675,199.69,199.67,8.65997378]
[1739290993742,0.03594675,199.69,199.67,8.65997378]
[1739290995937,0.03594675,199.69,199.67,13.66777378]
[1739290997036,5.04354675,199.69,199.67,8.65997378]
[1739290997242,0.03594675,199.69,199.64,8.65997378]
[1739290997641,0.03594675,199.69,199.58,1.5612]
[1739290997642,5.0085,199.65,199.62,8.65997378]
[1739290997832,0.03594675,199.69,199.62,8.65997378]
[1739290998235,5.008,199.67,199.62,8.65997378]
[1739290998437,0.03594675,199.69,199.62,8.65997378]
[1739290998438,8.69592053,199.69,199.62,8.65997378]
[1739290998643,8.65997378,199.67,199.6,8.65997378]
[1739290999137,8.65997378,199.65,199.59,6.97002591]
[1739290999339,5.0097,199.6,199.59,6.97002591]
[1739291000133,5.0097,199.6,199.56,11.98072591]
[1739291000333,5.0097,199.6,199.56,6.97002591]
[1739291000534,5.04427372,199.6,199.56,6.97002591]
[1739291000931,0.03457372,199.6,199.56,6.97002591]
[1739291001239,5.04437372,199.6,199.56,6.97002591]
[1739291002135,0.03457372,199.6,199.56,6.97002591]
[1739291002335,0.03457372,199.6,199.56,20.51865172]
[1739291002536,0.03457372,199.6,199.58,5.0102]
[1739291003539,0.03457372,199.6,199.57,5.0104]
[1739291003740,0.03457372,199.6,199.56,13.54862581]
[1739291003936,0.03457372,199.6,199.54,42.21173645]
[1739291004843,5.01,199.59,199.55,5.0109]
[1739291005342,0.03457372,199.6,199.54,42.21173645]
[1739291005840,5.01,199.59,199.55,5.011]
[1739291006042,5.01,199.59,199.54,42.21173645]
[1739291006344,5.01,199.59,199.55,5.0109]
[1739291007343,5.01,199.59,199.54,42.21173645]
[1739291007646,5.0103,199.58,199.54,42.21173645]
[1739291008041,0.03457372,199.6,199.54,42.21173645]
[1739291008239,5.01,199.59,199.54,42.21173645]
[1739291010146,5.0102,199.58,199.55,5.0108]
[1739291010945,0.03457372,199.6,199.5,13.54862581]
[1739291011139,1.5187,199.59,199.51,0.88090781]
[1739291011335,5.0112,199.55,199.51,5.89270781]
[1739291011538,0.03583043,199.57,199.5,13.54862581]
[1739291011741,0.03583043,199.57,199.51,0.88119066]
[1739291012945,5.0108,199.56,199.53,5.0115]
[1739291013448,5.04633043,199.57,199.53,5.0115]
[1739291013851,0.03583043,199.57,199.5,13.54862581]
[1739291014050,5.0109,199.56,199.52,5.0117]
[1739291014543,0.03583043,199.57,199.52,5.0117]
[1739291014748,5.011,199.55,199.52,5.0117]
[1739291015151,5.011,199.55,199.51,5.0119]
[1739291015649,0.03583043,199.57,199.51,5.0119]
[1739291016950,0.03583043,199.57,199.5,13.54862581]
[1739291017149,0.03583043,199.57,199.52,5.0117]
[1739291017552,5.0111,199.55,199.52,5.0117]
[1739291018455,5.0112,199.54,199.51,5.0119]
[1739291018651,0.03583043,199.57,199.51,5.0119]
[1739291018953,5.011,199.55,199.52,5.0117]
[1739291019951,5.0113,199.54,199.51,5.0119]
[1739291020555,5.0116,199.53,199.5,13.54862581]
[1739291020755,5.0116,199.53,199.49,5.0124]
[1739291021049,5.0118,199.52,199.49,5.0124]
[1739291021554,5.0118,199.52,199.47,13.54862581]
[1739291021749,0.03331817,199.53,199.47,13.54862581]
[1739291021750,5.012,199.51,199.5,8.67611706]
[1739291023253,0.03331817,199.53,199.5,8.67611706]
[1739291023455,5.04481817,199.53,199.5,8.67611706]
[1739291024658,0.03331817,199.53,199.51,5.012]
[1739291024860,0.03331817,199.53,199.52,8.67611706]
[1739291026861,0.03331817,199.53,199.52,13.68781706]
[1739291028457,1.5224,199.62,199.52,13.68781706]
[1739291028663,5.0095,199.61,199.57,13.68641706]
[1739291028959,5.0095,199.61,199.57,8.67611706]
[1739291029564,5.0098,199.6,199.57,8.67611706]
[1739291029765,5.0098,199.6,199.57,8.71110063]
[1739291030059,0.03715044,199.61,199.57,0.03498357]
[1739291030263,8.7132675,199.61,199.57,0.03498357]
[1739291030766,5.0098,199.6,199.57,0.03498357]
[1739291031468,5.01,199.59,199.57,0.03498357]
[1739291031667,8.67611706,199.59,199.51,8.67611706]
[1739291031868,8.67611706,199.57,199.49,8.67611706]
[1739291032270,5.011,199.56,199.49,8.67611706]
[1739291032864,0.03342313,199.54,199.51,5.0118]
[1739291033267,0.03342313,199.54,199.51,13.68791706]
[1739291033468,0.03342313,199.54,199.51,8.67611706]
[1739291033665,0.03342313,199.54,199.52,5.0117]
[1739291034366,0.03342313,199.54,199.53,13.68761706]
[1739291041774,0.03342313,199.54,199.53,14.56950326]
[1739291041976,0.03342313,199.54,199.53,13.68761706]
[1739291043274,0.03342313,199.54,199.53,8.67611706]
[1739291044275,0.03342313,199.54,199.53,13.68761706]
[1739291045975,0.03342313,199.54,199.53,8.67611706]
[1739291046376,0.03342313,199.54,199.51,8.67611706]
[1739291046976,0.03342313,199.54,199.51,13.68801706]
[1739291047777,5.04472313,199.54,199.51,13.68801706]
[1739291048480,0.03342313,199.54,199.53,5.0115]
[1739291048681,0.03342313,199.54,199.53,13.68761706]
[1739291049579,0.03342313,199.54,199.51,8.67611706]
[1739291050377,5.04482313,199.54,199.51,13.68801706]
[1739291050573,0.03342313,199.54,199.51,8.67611706]
[1739291052083,0.03342313,199.54,199.51,13.68801706]
[1739291053082,0.03342313,199.54,199.51,8.67611706]
[1739291053282,0.03342313,199.54,199.47,15.64614297]
[1739291053483,3.11582313,199.54,199.47,15.64614297]
[1739291053885,5.012,199.52,199.48,5.0125]
[1739291054083,3.11582313,199.54,199.49,8.67611706]
[1739291054281,5.0117,199.52,199.49,13.68851706]
[1739291055088,5.0117,199.52,199.49,8.67611706]
[1739291055679,5.0122,199.5,199.49,8.67611706]
[1739291055878,8.67611706,199.53,199.47,8.67611706]
[1739291056186,5.0128,199.48,199.45,27.88010366]
[1739291056388,0.0350235,199.52,199.45,36.55622072]
[1739291057285,5.0127,199.49,199.45,36.55622072]
[1739291057487,8.67611706,199.51,199.45,36.55622072]
[1739291057987,5.013,199.48,199.45,36.55622072]
[1739291058288,8.67611706,199.51,199.45,36.55622072]
[1739291058689,5.0131,199.47,199.45,36.55622072]
[1739291058897,5.0131,199.47,199.45,27.88010366]
[1739291059593,5.04439113,199.48,199.45,27.88010366]
[1739291060084,5.04439113,199.48,199.44,5.0137]
[1739291061386,5.04439113,199.48,199.43,8.67611706]
[1739291061592,5.0135,199.46,199.43,8.67611706]
[1739291061793,5.0135,199.46,199.41,13.69051706]
[1739291062892,1.5127,199.47,199.42,5.014]
[1739291062893,6.5257,199.47,199.42,5.014]
[1739291063193,1.5127,199.47,199.41,8.67611706]
[1739291063490,5.0135,199.46,199.41,13.69041706]
[1739291065596,5.0135,199.46,199.41,8.67611706]
[1739291065792,6.5257,199.47,199.43,13.68991706]
[1739291066091,1.54988392,199.47,199.43,8.67611706]
[1739291066293,5.0133,199.46,199.43,8.67611706]
[1739291070900,1.54988392,199.47,199.43,8.67611706]
[1739291071199,5.0135,199.45,199.43,8.67611706]
[1739291071700,1.54988392,199.47,199.43,8.67611706]
[1739291071897,5.0133,199.46,199.43,8.67611706]
[1739291074707,5.0133,199.46,199.33,5.005]
[1739291074708,5.014,199.43,199.41,8.67611706]
[1739291075010,0.03448169,199.44,199.41,8.67611706]
[1739291075611,0.03448169,199.44,199.39,8.67611706]
[1739291075906,5.04736299,199.43,199.39,8.67611706]
[1739291076711,5.04736299,199.43,199.39,13.69111706]
[1739291078010,5.0145,199.41,199.38,5.0152]
[1739291078311,0.03316299,199.43,199.38,5.0152]
[1739291078812,5.0144,199.42,199.38,5.0152]
[1739291079409,5.0144,199.42,199.39,5.015]
[1739291079608,0.03316299,199.43,199.39,8.67611706]
[1739291080109,5.04716299,199.43,199.4,5.0147]
[1739291080816,5.0143,199.42,199.39,8.67611706]
[1739291081114,5.0143,199.42,199.39,13.69111706]
[1739291081818,5.0143,199.42,199.39,5.015]
[1739291082716,5.04716299,199.43,199.4,5.0147]
[1739291082917,0.03316299,199.43,199.39,8.67611706]
[1739291083911,0.03316299,199.43,199.41,5.0144]
[1739291084119,0.03316299,199.43,199.41,8.67611706]
[1739291085117,0.03316299,199.43,199.42,5.0142]
[1739291085815,0.03316299,199.43,199.41,13.69041706]
[1739291086013,0.03316299,199.43,199.41,8.67611706]
[1739291086618,0.03316299,199.43,199.39,8.67611706]
[1739291087013,5.0147,199.41,199.39,8.67611706]
[1739291087214,0.03316299,199.43,199.37,8.67611706]
[1739291087420,8.67611706,199.45,199.37,8.67611706]
[1739291087720,5.0147,199.41,199.38,5.0152]
[1739291088121,0.0341266,199.42,199.37,8.67611706]
[1739291088314,5.015,199.4,199.37,8.67611706]
[1739291088521,8.67611706,199.41,199.35,8.67611706]
[1739291088820,8.67611706,199.41,199.33,8.67611706]
[1739291089121,8.67611706,199.39,199.32,27.88010366]
[1739291089309,8.67611706,199.39,199.31,36.55622072]
[1739291089514,11.72201706,199.39,199.31,36.55622072]
[1739291090114,5.0167,199.33,199.31,27.88010366]
[1739291090514,0.03753076,199.34,199.31,27.88010366]
[1739291090916,5.0168,199.32,199.31,27.88010366]
[1739291092123,5.0165,199.33,199.31,27.88010366]
[1739291092322,0.03753076,199.34,199.31,27.88010366]
[1739291093216,0.03753076,199.34,199.27,13.69411706]
[1739291093421,5.05383076,199.34,199.29,8.67611706]
[1739291094014,0.03753076,199.34,199.29,8.67611706]
[1739291094725,5.05403076,199.34,199.28,5.0178]
[1739291095226,5.0165,199.33,199.28,5.0178]
[1739291095524,0.03753076,199.34,199.28,5.0178]
[1739291095824,5.0165,199.33,199.28,5.0178]
[1739291096125,0.03753076,199.34,199.28,5.0178]
[1739291096322,5.05383076,199.34,199.29,5.0174]
[1739291097622,5.0165,199.33,199.29,5.0174]
[1739291097922,5.0165,199.33,199.28,5.0177]
[1739291098120,0.03753076,199.34,199.27,8.67611706]
[1739291098319,5.0171,199.31,199.26,90.16]
[1739291098518,8.67611706,199.33,199.26,90.16]
[1739291099025,5.017,199.32,199.28,5.0177]
[1739291100231,8.67611706,199.33,199.3,5.0173]
[1739291100421,8.67611706,199.33,199.27,8.67611706]
[1739291101026,8.67611706,199.31,199.26,90.16]
[1739291101328,8.67611706,199.31,199.25,8.67611706]
[1739291101526,8.67611706,199.31,199.26,5.018]
[1739291101527,5.0174,199.3,199.26,5.018]
[1739291101722,8.67611706,199.29,199.23,8.67611706]
[1739291102217,8.67611706,199.29,199.22,5.0193]
[1739291102621,5.05262847,199.27,199.22,5.0193]
[1739291103226,5.05262847,199.27,199.19,36.55622072]
[1739291103227,8.71054553,199.27,199.19,36.55622072]
[1739291103426,8.67611706,199.25,199.19,27.88010366]
[1739291103627,13.69531706,199.23,199.19,32.90010366]
[1739291104130,5.0198,199.2,199.17,8.67611706]
[1739291104325,5.0198,199.2,199.16,32.90060366]
[1739291104833,5.0198,199.2,199.16,27.88010366]
[1739291105328,5.0195,199.22,199.17,8.67611706]
[1739291105721,0.03750081,199.23,199.19,13.69601706]
[1739291105923,0.03750081,199.23,199.19,8.67611706]
[1739291107426,8.71361787,199.23,199.17,13.69641706]
[1739291107728,8.67611706,199.21,199.17,5.0203]
[1739291107926,5.0199,199.2,199.16,5.0206]
[1739291108127,0.03750081,199.23,199.17,8.67611706]
[1739291108325,0.03750081,199.23,199.19,8.67611706]
[1739291108527,5.0197,199.21,199.19,8.67611706]
[1739291108725,8.70881243,199.23,199.17,8.67611706]
[1739291109434,8.70881243,199.23,199.15,8.67611706]
[1739291109731,8.67611706,199.23,199.15,8.67611706]
[1739291109925,5.02,199.2,199.16,5.0208]
[1739291110924,8.71131682,199.21,199.13,8.67611706]
[1739291111127,8.67611706,199.19,199.11,8.67611706]
[1739291111534,0.03349424,199.17,199.11,13.69791706]
[1739291111728,0.03349424,199.17,199.11,8.67611706]
[1739291112427,5.0209,199.16,199.12,5.0216]
[1739291112626,5.0209,199.16,199.13,8.67611706]
[1739291112827,0.03349424,199.17,199.13,8.67611706]
[1739291113230,0.03349424,199.17,199.13,13.69761706]
[1739291113734,0.03349424,199.17,199.16,8.67611706]
[1739291114329,5.0193,199.23,199.16,8.67611706]
[1739291114527,5.0193,199.23,199.2,8.67611706]
[1739291115033,8.67611706,199.23,199.16,8.67611706]
[1739291115432,5.0196,199.21,199.17,5.0205]
[1739291115627,0.03349781,199.21,199.18,0.03679439]
[1739291115828,0.03349781,199.21,199.2,8.67611706]
[1739291116024,0.03349781,199.21,199.18,8.67611706]
[1739291116330,0.03349781,199.21,199.18,8.70912982]
[1739291116633,0.03349781,199.21,199.2,8.67611706]
[1739291117332,0.03349781,199.21,199.18,0.03301276]
[1739291117525,8.70961487,199.21,199.18,0.03301276]
[1739291117725,5.02,199.19,199.18,0.03301276]
[1739291118637,5.0206,199.17,199.12,8.67611706]
[1739291119334,5.0208,199.16,199.13,5.0215]
[1739291119636,0.03591839,199.16,199.12,8.67611706]
[1739291120030,5.05681839,199.16,199.12,13.69771706]
[1739291120835,5.05681839,199.16,199.14,8.67611706]
[1739291121032,0.03591839,199.16,199.14,8.67611706]
[1739291122037,0.03591839,199.16,199.15,5.021]
[1739291122634,8.67611706,199.25,199.19,5.02]
[1739291122835,8.67611706,199.25,199.2,8.67611706]
[1739291123036,5.019,199.24,199.2,8.67611706]
[1739291123235,8.67611706,199.27,199.2,13.69571706]
[1739291123435,8.67611706,199.27,199.2,8.67611706]
[1739291123736,0.03535104,199.25,199.22,0.03606371]
[1739291123939,0.03535104,199.25,199.22,8.71218077]
[1739291124335,0.03535104,199.25,199.22,13.73118077]
[1739291124536,0.03535104,199.25,199.22,8.71218077]
[1739291124737,5.05405104,199.25,199.22,8.71218077]
[1739291125541,5.019,199.23,199.22,8.71218077]
[1739291125741,5.019,199.23,199.22,0.03606371]
[1739291126742,13.63244548,199.25,199.09,41.4771981]
[1739291126942,13.59709444,199.21,199.09,41.4771981]
[1739291127240,1.5144,199.2,199.09,41.4771981]
[1739291127742,0.0378627,199.16,199.09,41.4771981]
[1739291127942,0.0378627,199.16,199.09,27.88010366]
[1739291128440,5.0216,199.13,199.09,32.90260366]
[1739291128842,5.0213,199.14,199.09,32.90260366]
[1739291129046,5.0213,199.14,199.1,5.0223]
[1739291129540,5.0211,199.15,199.1,5.0223]
[1739291129740,0.0378627,199.16,199.1,5.0223]
[1739291130135,5.0211,199.15,199.09,5.0225]
[1739291130539,5.0214,199.14,199.06,13.59709444]
[1739291130849,13.59709444,199.18,199.05,5.0234]
[1739291131044,0.03244434,199.12,199.05,5.0234]
[1739291131343,5.0227,199.09,199.04,5.0238]
[1739291131537,0.03244434,199.12,199.01,1.4955]
[1739291131739,5.0228,199.08,199.03,5.0239]
[1739291132039,2.9906,199.14,199.0,103.85709444]
[1739291132239,0.03279288,199.07,199.04,5.0237]
[1739291132439,5.0228,199.09,199.04,5.0237]
[1739291132740,0.03815675,199.07,199.0,103.85709444]
[1739291133642,0.03815675,199.07,199.02,5.0241]
[1739291133937,0.03815675,199.07,199.0,103.85709444]
[1739291134237,0.03815675,199.07,199.04,5.0237]
[1739291134443,0.03815675,199.07,199.0,103.85709444]
[1739291134640,0.03815675,199.07,199.0,90.26]
[1739291135734,5.0236,199.05,199.01,5.0243]
[1739291135934,0.03815675,199.07,199.0,103.85709444]
[1739291137139,0.03815675,199.07,199.03,13.59709444]
[1739291137640,0.03815675,199.07,199.06,5.0233]
[1739291142544,0.03815675,199.07,199.06,18.62039444]
[1739291142747,5.0218,199.13,199.09,5.0225]
[1739291143645,5.0219,199.12,199.09,5.0225]
[1739291143845,5.0219,199.12,199.09,5.0586891]
[1739291145946,5.0221,199.11,199.09,0.0361891]
[1739291148350,5.022,199.12,199.09,5.0587891]
[1739291148749,0.03548035,199.13,199.09,0.0361891]
[1739291150546,5.0221,199.11,199.09,5.0585891]
[1739291152146,0.03548035,199.13,199.09,5.0585891]
[1739291152353,0.03548035,199.13,199.09,13.63328354]
[1739291152852,0.03548035,199.13,199.11,5.0219]
[1739291153949,5.05708035,199.13,199.09,18.65558354]
[1739291154149,5.05708035,199.13,199.09,13.63328354]
[1739291154454,0.03548035,199.13,199.11,5.022]
[1739291154756,0.03548035,199.13,199.09,13.63328354]
[1739291154953,0.03548035,199.13,199.09,0.0361891]
[1739291156953,0.03548035,199.13,199.01,6.97002591]
[1739291157150,13.59709444,199.12,199.01,6.97002591]
[1739291157852,5.0233,199.07,199.02,5.0241]
[1739291158253,0.03470622,199.08,199.02,5.0241]
[1739291158457,5.0235,199.06,199.02,5.0241]
[1739291158656,0.03470622,199.08,199.0,108.88169444]
[1739291159252,0.03470622,199.08,199.0,90.26]
[1739291159555,0.03470622,199.08,198.98,5.0252]
[1739291159757,1.53560622,199.08,198.98,5.0252]
[1739291159960,1.53560622,199.08,198.99,5.025]
[1739291160656,1.53560622,199.08,199.01,5.0245]
[1739291161152,5.0236,199.05,198.97,13.59709444]
[1739291161357,5.0236,199.05,199.0,5.0248]
[1739291161557,0.03300034,199.03,199.0,5.0248]
[1739291162156,0.03300034,199.03,199.01,5.0243]
[1739291163459,0.03300034,199.03,198.97,13.59709444]
[1739291163654,0.03300034,199.03,198.98,0.88439967]
[1739291164153,0.03300034,199.03,198.94,41.4771981]
[1739291164555,0.03300034,199.03,198.94,27.88010366]
[1739291164960,5.0254,198.98,198.94,32.90630366]
[1739291165160,0.03300034,199.03,198.94,41.4771981]
[1739291165359,1.4961,199.05,198.94,41.4771981]
[1739291165557,5.0251,198.99,198.96,5.0258]
[1739291165755,0.03225547,199.0,198.94,41.4771981]
[1739291166152,0.03225547,199.0,198.99,5.0251]
[1739291166351,0.03225547,199.0,198.97,13.59709444]
[1739291167056,0.03225547,199.0,198.97,18.62269444]
[1739291167456,5.05705547,199.0,198.97,5.0256]
[1739291167754,0.03225547,199.0,198.94,13.59709444]
[1739291167960,0.03225547,199.0,198.95,0.88455704]
[1739291168351,0.03225547,199.0,198.94,13.59709444]
[1739291168651,0.03225547,199.0,198.95,0.88455592]
[1739291169161,0.03225547,199.0,198.94,13.59709444]
[1739291169352,0.03225547,199.0,198.95,0.88455137]
[1739291170057,0.03225547,199.0,198.91,13.59709444]
[1739291170964,5.0263,198.95,198.91,18.62419444]
[1739291171162,1.5299,199.03,198.91,13.59709444]
[1739291171357,0.03184032,198.95,198.91,13.59709444]
[1739291171562,5.0266,198.94,198.91,13.59709444]
[1739291172261,0.03313714,198.95,198.91,13.59709444]
[1739291172461,5.0268,198.92,198.89,6.97002591]
[1739291172860,5.0274,198.9,198.89,6.97002591]
[1739291174165,3.0379,198.94,198.84,13.59709444]
[1739291174365,3.0379,198.94,198.84,18.62589444]
[1739291174666,5.0284,198.86,198.82,6.97002591]
[1739291175159,0.03579066,198.86,198.82,6.97002591]
[1739291175760,0.03579066,198.86,198.82,11.99932591]
[1739291175955,0.03579066,198.86,198.82,6.97002591]
[1739291177065,5.06429066,198.86,198.82,6.97002591]
[1739291177264,0.03579066,198.86,198.82,6.97002591]
[1739291177662,0.03579066,198.86,198.78,13.59709444]
[1739291177863,0.03579066,198.86,198.79,0.88521577]
[1739291178066,0.03579066,198.86,198.8,0.88521576]
[1739291178366,0.03579066,198.86,198.81,13.59709444]
[1739291178562,0.03579066,198.86,198.84,13.59709444]
[1739291179056,0.03579066,198.86,198.85,5.0286]
[1739291179564,0.03579066,198.86,198.81,13.59709444]
[1739291180161,0.03579066,198.86,198.85,5.0286]
[1739291180965,0.03579066,198.86,198.81,13.59709444]
[1739291181966,0.03579066,198.86,198.84,13.59709444]
[1739291182467,0.03579066,198.86,198.85,5.0286]
[1739291182868,3.0379,198.94,198.84,13.59709444]
[1739291183064,5.0266,198.93,198.87,13.59709444]
[1739291183370,3.0379,198.94,198.87,13.59709444]
[1739291183766,1.4703,198.94,198.89,5.0276]
[1739291183966,1.4703,198.94,198.87,13.59709444]
[1739291184267,0.03694598,198.93,198.9,0.03456751]
[1739291184666,0.03694598,198.93,198.9,5.06166751]
[1739291184862,0.03694598,198.93,198.9,0.03456751]
[1739291185758,0.03694598,198.93,198.81,13.59709444]
[1739291185963,13.59709444,198.95,198.81,13.59709444]
[1739291185964,13.59709444,198.95,198.82,0.88513085]
[1739291186367,13.59709444,198.95,198.83,5.0291]
[1739291186565,13.59709444,198.95,198.81,13.59709444]
[1739291186767,13.59709444,198.95,198.82,0.88512732]
[1739291186967,5.06105501,198.9,198.86,5.0283]
[1739291187269,0.03365501,198.9,198.84,13.59709444]
[1739291187459,1.5926,198.97,198.84,13.59709444]
[1739291187765,0.03530175,198.89,198.84,13.59709444]
[1739291188668,0.03530175,198.89,198.88,13.59709444]
[1739291188867,0.03530175,198.89,198.88,18.62499444]
[1739291190171,5.0264,198.94,198.9,5.0271]
[1739291190771,1.5926,198.97,198.9,5.0271]
[1739291190970,5.0266,198.93,198.9,5.0271]
[1739291191172,1.5926,198.97,198.91,13.59709444]
[1739291191473,0.03804218,198.93,198.91,13.59709444]
[1739291191671,0.03804218,198.93,198.91,18.62419444]
[1739291191868,0.03804218,198.93,198.91,13.59709444]
[1739291193472,0.03804218,198.93,198.92,5.0268]
[1739291194273,0.03804218,198.93,198.91,13.59709444]
[1739291194972,0.03804218,198.93,198.92,5.0268]
[1739291196073,5.0254,198.98,198.91,13.59709444]
[1739291196074,1.5745,199.03,198.96,5.0258]
[1739291196579,1.5745,199.03,198.97,5.0255]
[1739291197176,0.03748263,199.02,198.98,0.03620006]
[1739291197571,5.0246,199.01,198.98,0.03620006]
[1739291198371,5.0251,198.99,198.98,0.03620006]
[1739291199168,5.0251,198.99,198.98,6e-08]
[1739291201082,5.0277,198.89,198.85,5.0286]
[1739291201272,13.59709444,198.99,198.86,13.59709444]
[1739291201679,1.559,199.0,198.89,13.59709444]
[1739291202279,0.03712627,198.96,198.93,0.03359527]
[1739291202676,5.0263,198.94,198.93,0.03359527]
[1739291205384,5.0278,198.89,198.86,13.59709444]
[1739291205881,13.59709444,198.99,198.86,13.59709444]
[1739291206477,13.59709444,198.99,198.86,18.62539444]
[1739291206680,5.0276,198.9,198.86,18.62539444]
[1739291207076,5.0651804,198.9,198.86,18.62539444]
[1739291207278,0.0375804,198.9,198.86,13.59709444]
[1739291207880,0.0375804,198.9,198.87,5.0279]
[1739291208078,0.0375804,198.9,198.86,13.59709444]
[1739291208483,0.0375804,198.9,198.88,5.0276]
[1739291208678,0.0375804,198.9,198.89,13.59709444]
[1739291209077,0.0375804,198.9,198.89,18.62469444]
[1739291210586,0.0375804,198.9,198.89,13.59709444]
[1739291213585,0.0375804,198.9,198.89,18.62469444]
[1739291214383,0.0375804,198.9,198.89,13.59709444]
[1739291215180,0.0375804,198.9,198.86,13.59709444]
[1739291215386,5.0278,198.89,198.86,13.59709444]
[1739291215691,0.0375804,198.9,198.86,13.59709444]